bitfinex-derivatives/quotes_ETHF0:USTF0_20250224
["timestamp","ask_amount","ask_price","bid_price","bid_amount"]
[1740408393055,11.61598,2667.1,2667.0,0.00562229]
[1740408394162,0.75004,2666.2,2666.1,3.2078]
[1740408394366,4.49722,2666.3,2666.1,3.2078]
[1740408394558,0.75004,2666.2,2666.1,3.2078]
[1740408394860,10.8662,2666.2,2665.8,40.8]
[1740408395058,0.75012,2665.9,2665.8,40.8]
[1740408395558,0.75012,2665.9,2665.7,3.21342229]
[1740408395559,0.75015,2665.8,2665.7,0.00562229]
[1740408395760,0.75032,2665.2,2665.1,3.2078]
[1740408396159,3.2078,2666.2,2665.1,50.0078]
[1740408396461,7.86921,2665.6,2665.5,3.2078]
[1740408396854,11.61641,2665.6,2665.5,3.2078]
[1740408397650,0.75026,2665.4,2665.3,0.00562229]
[1740408397959,11.61646,2665.4,2665.3,0.00562229]
[1740408398161,11.61646,2665.4,2665.3,2.29e-06]
[1740408398362,14.82426,2665.4,2665.3,2.29e-06]
[1740408398557,11.61646,2665.4,2665.3,2.29e-06]
[1740408398962,14.82426,2665.4,2665.3,2.29e-06]
[1740408399766,20.82426,2665.4,2665.3,2.29e-06]
[1740408400569,10.8662,2665.4,2665.3,2.29e-06]
[1740408400765,0.7501,2666.0,2665.9,0.75011]
[1740408400958,10.8662,2665.8,2665.5,3.2078]
[1740408401157,3.7472,2665.4,2665.3,2.29e-06]
[1740408401362,11.61646,2665.4,2665.3,40.80000229]
[1740408401868,20.82426,2665.4,2665.3,2.29e-06]
[1740408402260,14.82426,2665.4,2665.3,2.29e-06]
[1740408402455,22.99056,2665.4,2665.3,2.29e-06]
[1740408402655,0.75051,2664.5,2664.4,3.2078]
[1740408402864,3.74719771,2664.5,2664.0,3.2078]
[1740408403063,3.74719771,2664.2,2664.0,3.2078]
[1740408403268,0.75063,2664.1,2664.0,3.2078]
[1740408403568,2.62329771,2664.2,2664.1,0.75063]
[1740408403763,2.24819771,2664.2,2664.1,0.75063]
[1740408403958,0.75063,2664.1,2664.0,3.2078]
[1740408404162,8.61742771,2664.1,2664.0,3.2078]
[1740408404360,9.36805771,2664.1,2664.0,3.2078]
[1740408404664,8.99295771,2664.1,2664.0,3.2078]
[1740408404968,7.49212771,2664.1,2663.9,3.96409229]
[1740408405172,2.24819771,2664.1,2663.9,3.21342229]
[1740408405367,0.00562229,2664.4,2664.3,0.75057]
[1740408405568,2.25382,2664.4,2664.3,0.75057]
[1740408405867,2.25382,2664.4,2664.2,3.2078]
[1740408405868,7.49775,2664.4,2664.2,3.2078]
[1740408406068,2.24819771,2664.3,2664.2,3.95839]
[1740408406263,2.24819771,2664.3,2664.2,3.2078]
[1740408406567,0.75078,2663.6,2663.1,5.08501]
[1740408406866,2.24257542,2663.4,2663.3,0.75085]
[1740408407065,2.24257542,2663.7,2663.1,3.2078]
[1740408407271,5.24393,2663.7,2663.6,0.75077]
[1740408407663,8.98971542,2663.7,2663.1,0.7509]
[1740408407868,7.11280542,2663.2,2663.0,3.95872]
[1740408408066,7.11280542,2663.2,2662.4,3.82856]
[1740408408067,6.73710542,2663.1,2662.2,3.2078]
[1740408408272,1.11747542,2662.4,2662.3,0.75113]
[1740408408664,6.36140542,2662.4,2662.3,0.75113]
[1740408408866,7.11252542,2662.4,2662.2,3.2078]
[1740408409174,2.74837078,2662.3,2662.2,3.113535]
[1740408409370,2.74837078,2662.3,2662.2,1.93935212]
[1740408409566,2.36806537,2662.3,2662.2,0.75116]
[1740408409769,2.36806537,2662.3,2662.2,44.75896]
[1740408409971,2.36806537,2662.3,2662.2,42.17590203]
[1740408410267,0.00563296,2662.6,2662.5,0.75108]
[1740408410464,0.00563296,2662.6,2662.5,3.95888]
[1740408410665,3.2078,2663.7,2662.5,9.2078]
[1740408410970,3.2078,2664.4,2663.2,3.2078]
[1740408411166,0.31238079,2664.6,2664.2,1.87651]
[1740408411380,0.31238079,2664.7,2664.6,0.75048]
[1740408411673,3.2078,2665.5,2664.1,4.123]
[1740408411970,0.31801375,2664.9,2664.6,40.8]
[1740408412175,1.06843375,2664.9,2664.6,40.8]
[1740408412370,0.31801375,2664.9,2664.6,40.8]
[1740408412670,0.31238079,2664.7,2664.4,0.00563296]
[1740408412869,5.99444,2664.5,2664.4,0.00563296]
[1740408413070,5.55631079,2664.5,2664.4,0.00563296]
[1740408413268,6.30682079,2664.5,2664.4,0.00563296]
[1740408413774,5.18061079,2664.5,2664.4,4.34152124]
[1740408413977,5.93112079,2664.5,2664.4,4.34152124]
[1740408414176,2.41096843,2664.5,2664.4,4.34152124]
[1740408414477,0.00563296,2664.9,2664.4,4.34152124]
[1740408414670,1.66045843,2664.7,2664.4,4.34152124]
[1740408414873,3.2078,2665.0,2664.5,7.3920388]
[1740408415072,0.75049,2664.6,2664.5,7.3920388]
[1740408416275,0.00563296,2664.8,2664.5,7.3920388]
[1740408416571,0.75049,2664.6,2664.5,7.3920388]
[1740408416771,0.75049,2664.6,2664.5,3.05051756]
[1740408416977,0.75049,2664.6,2664.5,2.21335756]
[1740408417475,0.75054,2664.4,2664.3,0.00563296]
[1740408417975,3.58324,2664.4,2664.3,0.00563296]
[1740408418371,2.83184,2664.4,2664.3,4.3474486]
[1740408418574,9.19097,2664.7,2664.3,1.64848212]
[1740408418769,0.75054,2664.4,2664.3,4.34757377]
[1740408419279,7.3148,2664.7,2664.4,0.75053]
[1740408419280,4.107,2664.7,2664.4,0.75053]
[1740408419470,2.93360092,2664.7,2664.3,4.34757377]
[1740408419778,0.00563296,2664.8,2664.5,4.34194081]
[1740408419972,2.44686694,2665.0,2664.5,4.34194081]
[1740408420276,2.44686694,2665.0,2664.3,3.21343296]
[1740408420475,0.75054,2664.4,2664.3,0.00563296]
[1740408420672,0.75051,2664.6,2664.4,0.75053]
[1740408420876,2.44686694,2665.0,2664.4,4.34122395]
[1740408421269,3.2078,2664.7,2664.5,4.34122395]
[1740408421470,5.6602999,2665.0,2664.5,4.34122395]
[1740408421670,3.2028799,2665.0,2664.5,5.09172395]
[1740408421878,3.2028799,2665.0,2664.6,4.34122395]
[1740408421879,2.4524999,2665.0,2664.6,4.34122395]
[1740408422077,0.75046,2664.7,2664.6,4.34122395]
[1740408422473,0.75067,2664.0,2663.6,0.75077]
[1740408422681,4.068,2664.1,2662.9,1.9546]
[1740408422977,0.75081,2663.5,2662.9,3.2078]
[1740408423176,1.87679,2663.8,2662.9,3.2078]
[1740408423368,3.2078,2663.6,2662.9,3.2078]
[1740408423576,0.75092,2663.1,2662.9,3.2078]
[1740408423881,4.061,2663.5,2663.0,0.00563296]
[1740408424076,0.75091,2663.1,2663.0,0.00563296]
[1740408424878,3.21343296,2663.6,2663.0,0.00563296]
[1740408425077,3.6793,2663.5,2663.4,0.75082]
[1740408425381,0.75083,2663.4,2663.1,0.75089]
[1740408425582,0.00563296,2663.6,2663.0,5.09076296]
[1740408425779,0.00563296,2663.6,2663.5,0.7508]
[1740408425979,0.00563296,2663.6,2663.3,3.95863]
[1740408426282,0.75082,2663.4,2663.3,3.2078]
[1740408426483,0.75091,2663.1,2663.0,0.00563296]
[1740408426680,3.58301,2663.1,2663.0,0.00563296]
[1740408426875,4.05,2663.5,2663.3,0.75083]
[1740408427076,0.00563296,2663.6,2663.1,3.2078]
[1740408427385,0.00563296,2663.6,2663.5,0.7508]
[1740408427788,0.00563296,2663.6,2663.5,1.33245518]
[1740408428086,6.3742,2664.7,2663.5,1.33245518]
[1740408428087,3.2078,2665.3,2663.5,51.80768359]
[1740408428283,4.054,2665.3,2664.7,3.2078]
[1740408428478,3.6783,2665.3,2664.3,3.2078]
[1740408428681,4.4426,2665.4,2664.3,5.08422]
[1740408428880,7.6504,2665.4,2664.7,0.58165518]
[1740408429483,0.00563296,2665.3,2664.8,0.58728814]
[1740408429679,3.2078,2664.9,2664.8,0.58728814]
[1740408429981,0.75037,2665.1,2664.9,0.75039]
[1740408430179,8.8557903,2665.0,2663.8,3.2078]
[1740408430374,0.00563296,2665.3,2663.2,3.7544]
[1740408430375,3.2078,2664.9,2664.2,1.87651]
[1740408430580,3.6933,2665.0,2664.9,0.75039]
[1740408430776,1.88137296,2665.3,2664.4,3.2078]
[1740408431087,1.88137296,2665.3,2664.5,3.2078]
[1740408431088,3.2078,2665.2,2664.5,3.2078]
[1740408431277,0.75047,2664.7,2664.6,0.00563296]
[1740408431580,9.17564397,2664.8,2663.9,1.17344716]
[1740408431781,3.2078,2664.6,2663.5,3.2078]
[1740408431989,3.75720296,2665.3,2663.5,3.2078]
[1740408431990,5.08424,2664.3,2663.7,0.75073]
[1740408432285,1.87672,2663.9,2662.9,3.2078]
[1740408432483,2.4576,2663.7,2662.9,0.01438097]
[1740408432684,2.4576,2663.7,2663.0,3.2078]
[1740408432879,2.26,2663.9,2663.1,1.87728]
[1740408433084,0.75078,2663.6,2663.5,0.75079]
[1740408433386,3.69493296,2663.8,2663.2,3.2078]
[1740408433584,3.69493296,2663.8,2663.3,1.87714]
[1740408433782,4.44565296,2663.8,2663.7,0.75074]
[1740408434088,4.44565296,2663.8,2663.4,3.75667636]
[1740408434283,2.26,2663.9,2663.4,3.77105733]
[1740408434584,2.26563296,2663.9,2663.5,3.75667636]
[1740408434890,0.75077,2663.6,2663.5,3.75667636]
[1740408435087,0.75077,2663.6,2663.5,0.7508]
[1740408435279,3.2078,2663.8,2663.3,0.00563296]
[1740408435583,4.048,2663.7,2663.3,0.00563296]
[1740408435790,0.75082,2663.4,2663.3,0.00563296]
[1740408436289,1.87717,2663.3,2662.6,3.2078]
[1740408436484,0.75093,2663.1,2663.0,0.75093]
[1740408436682,4.043,2663.2,2662.6,3.2078]
[1740408436875,4.043,2663.2,2662.6,3.22218097]
[1740408437079,0.75095,2663.0,2662.7,4.34436111]
[1740408437280,0.75099,2662.8,2662.7,5.09537111]
[1740408437480,0.75099,2662.8,2662.7,4.34436111]
[1740408437681,0.37529,2662.8,2662.7,4.34436111]
[1740408437891,5.94797,2663.8,2662.7,4.34436111]
[1740408437892,3.2078,2663.4,2662.7,4.34436111]
[1740408438086,0.00563296,2663.9,2663.8,0.75071]
[1740408438391,0.00563296,2663.9,2663.5,3.2078]
[1740408438683,0.00563296,2663.9,2663.8,0.75071]
[1740408438888,2.96e-06,2663.9,2663.8,0.75071]
[1740408439084,2.96e-06,2663.9,2663.8,5.09507111]
[1740408439984,4.034,2664.7,2663.8,4.35874208]
[1740408439985,3.714186,2664.7,2663.8,4.35874208]
[1740408440185,3.2078,2665.2,2664.4,1.87632]
[1740408440387,3.2078,2665.6,2664.6,3.2078]
[1740408440587,3.2078,2666.0,2665.9,0.75012]
[1740408440799,4.04,2666.0,2665.9,3.95792]
[1740408441083,4.04,2666.0,2665.6,1.87552]
[1740408441084,0.00563296,2666.2,2666.1,0.75006]
[1740408441284,0.00563296,2666.2,2666.1,2.70054879]
[1740408441486,0.00563296,2666.2,2666.1,3.45060879]
[1740408441686,0.75567296,2666.2,2666.1,2.70054879]
[1740408441879,0.00563296,2666.2,2666.1,3.45060879]
[1740408442083,0.75567296,2666.2,2666.1,4.34258618]
[1740408442293,6.75567296,2666.2,2666.1,4.34258618]
[1740408442688,0.75567296,2666.2,2666.1,4.34258618]
[1740408442889,6.75567296,2666.2,2666.1,2.70054879]
[1740408443192,0.75015,2665.9,2665.7,0.00563296]
[1740408443387,4.77915,2665.8,2665.7,0.00563296]
[1740408443593,4.029,2665.8,2664.8,3.2078]
[1740408443784,0.75014,2665.9,2665.7,2.39255508]
[1740408443988,2.28823296,2666.2,2665.7,1.64237508]
[1740408444289,0.00563296,2666.2,2665.7,4.85017508]
[1740408444491,2.96e-06,2666.2,2666.1,0.75006]
[1740408444681,0.26616799,2666.9,2666.8,0.74987]
[1740408444883,4.038,2667.9,2666.9,1.87461]
[1740408445186,3.2078,2668.0,2667.1,1.87447]
[1740408445488,3.2078,2668.0,2667.3,3.2078]
[1740408445690,3.11341686,2668.0,2667.3,3.2078]
[1740408445888,2.2826,2668.1,2667.4,1.64800804]
[1740408446090,0.7496,2667.8,2667.5,0.74965]
[1740408446391,3.21343296,2667.9,2667.6,1.64237508]
[1740408446587,0.74961,2667.7,2667.6,1.64237508]
[1740408446893,0.00563296,2667.9,2667.8,0.74959]
[1740408447283,0.00563296,2667.9,2667.6,1.64237508]
[1740408447483,0.00563296,2667.9,2667.6,2.40637309]
[1740408447687,0.00563296,2667.9,2667.7,1.64237508]
[1740408447990,0.74959,2667.8,2667.7,1.64237508]
[1740408448289,0.74965,2667.6,2667.4,0.75532296]
[1740408448490,0.74965,2667.6,2667.4,0.00563296]
[1740408448688,3.21343296,2667.9,2667.4,0.75531296]
[1740408448883,0.74964,2667.6,2667.5,1.64109207]
[1740408449087,7.97144,2667.6,2667.5,1.64109207]
[1740408449588,13.97144,2667.6,2667.5,1.64109207]
[1740408449783,7.2218,2667.6,2666.9,0.74982]
[1740408449989,3.2078,2667.3,2666.5,3.22217801]
[1740408450190,3.2078,2666.9,2666.2,3.2078]
[1740408450486,3.2078,2666.6,2665.8,3.2078]
[1740408450690,0.75007,2666.1,2665.9,0.75011]
[1740408450993,2.79083043,2666.6,2665.8,3.2078]
[1740408451189,0.75006,2666.1,2666.0,1.17280083]
[1740408451389,4.003,2666.3,2666.0,1.17280083]
[1740408451592,4.75302,2666.3,2666.1,0.75005]
[1740408451895,3.11108883,2666.3,2666.2,1.17280083]
[1740408452289,5.56887883,2666.3,2666.2,1.17280083]
[1740408452490,0.00563296,2666.5,2666.2,1.17280083]
[1740408452792,0.75001,2666.3,2666.2,1.17280083]
[1740408452988,3.21343296,2666.5,2665.9,0.00563296]
[1740408453182,0.75009,2666.0,2665.9,0.02001097]
[1740408453386,0.75009,2666.0,2665.9,0.00563296]
[1740408453891,0.75009,2666.0,2665.9,2.11691114]
[1740408454189,6.0,2666.0,2665.5,0.75023]
[1740408454389,3.2078,2665.9,2665.1,2.2234]
[1740408454585,3.2078,2665.9,2665.1,2.23777801]
[1740408454887,0.75039,2665.0,2664.7,3.2078]
[1740408455086,0.75036,2665.1,2664.8,0.7504]
[1740408455283,3.992,2665.4,2665.3,0.75029]
[1740408455486,0.00563296,2665.2,2665.1,0.75035]
[1740408455692,0.00563296,2665.2,2665.1,1.33694976]
[1740408455889,0.75595296,2665.2,2665.1,0.58659976]
[1740408456496,6.00563296,2665.2,2664.2,2.2891]
[1740408456792,3.2078,2665.0,2664.2,0.01437801]
[1740408457095,3.993,2664.9,2664.2,0.01437801]
[1740408457490,0.7505,2664.6,2664.4,0.75053]
[1740408457691,0.7505,2664.6,2664.5,0.75051]
[1740408457882,5.49395,2664.9,2664.3,0.75055]
[1740408458088,3.6179,2664.9,2664.3,0.01437801]
[1740408458588,0.75047,2664.7,2664.3,0.01437801]
[1740408458789,3.2078,2665.0,2664.3,0.01437801]
[1740408458989,3.972,2665.1,2665.0,0.75037]
[1740408459189,4.72236,2665.1,2664.7,3.2078]
[1740408459393,3.972,2665.1,2664.7,3.2078]
[1740408459695,0.00563296,2665.2,2664.7,3.2078]
[1740408459895,0.00563296,2665.2,2665.1,0.75035]
[1740408460391,0.00563296,2665.2,2665.1,2.3927878]
[1740408460594,0.75595296,2665.2,2665.1,1.65681581]
[1740408460795,0.75032,2665.2,2665.1,1.6424378]
[1740408460999,0.7425043,2665.2,2665.1,1.6424378]
[1740408461194,0.75032,2665.2,2665.1,1.6424378]
[1740408461592,0.75035,2665.1,2665.0,0.75037]
[1740408461788,0.75035,2665.1,2665.0,0.75035]
[1740408461994,6.75751831,2665.3,2664.8,0.00563296]
[1740408462192,0.75036,2665.1,2664.8,0.00563296]
[1740408462395,0.75038,2665.0,2664.9,2.81588359]
[1740408462795,6.75751831,2665.3,2665.0,0.75037]
[1740408462993,0.00563296,2665.3,2665.2,0.75032]
[1740408463300,0.75595296,2665.3,2665.2,2.81588359]
[1740408463500,0.75595296,2665.3,2665.2,3.56620359]
[1740408463501,2.96e-06,2665.3,2665.2,3.56620359]
[1740408464202,2.59744479,2666.7,2665.3,3.75143]
[1740408464402,7.68002479,2666.7,2665.8,1.87538]
[1740408464697,11.64602479,2666.7,2665.8,1.87538]
[1740408464892,0.75002,2666.3,2666.2,0.75003]
[1740408465088,3.2078,2666.4,2665.9,3.75413875]
[1740408465297,0.75009,2666.0,2665.9,3.75413875]
[1740408465501,20.81563296,2666.5,2666.1,0.75006]
[1740408465502,3.963,2666.2,2666.1,0.75006]
[1740408466097,4.71304,2666.2,2666.1,2.11153999]
[1740408466503,3.963,2666.2,2666.1,2.11153999]
[1740408466695,4.71304,2666.2,2666.1,2.11153999]
[1740408466901,0.75004,2666.2,2666.1,3.75353689]
[1740408467101,0.75004,2666.2,2666.1,4.50359689]
[1740408467405,3.955,2666.4,2666.3,0.75001]
[1740408467603,3.2042,2666.4,2666.3,0.75001]
[1740408467797,0.00563296,2666.5,2666.4,0.74998]
[1740408468203,3.949,2666.9,2666.8,0.74987]
[1740408468401,3.2078,2667.0,2666.4,6.96133689]
[1740408468599,0.74977,2667.2,2667.1,0.74977]
[1740408469100,5.4103,2668.0,2666.8,3.2078]
[1740408469307,0.74966,2667.6,2667.5,0.74966]
[1740408469500,3.944,2667.9,2667.2,0.74974]
[1740408469501,0.00563296,2667.7,2667.2,0.74974]
[1740408469693,1.87967296,2667.7,2667.1,4.33978697]
[1740408469905,0.00563296,2667.7,2667.6,0.74964]
[1740408470198,3.2078,2668.7,2667.5,3.956]
[1740408470394,3.2078,2668.7,2667.8,3.2078]
[1740408470599,3.2078,2668.7,2668.3,0.74944]
[1740408470799,0.74948,2668.2,2668.0,0.74951]
[1740408470998,3.2078,2668.4,2667.9,4.35416202]
[1740408471198,0.74957,2667.9,2667.7,0.74961]
[1740408471504,0.74956,2667.9,2667.8,0.00562198]
[1740408471697,4.70256,2667.9,2667.8,0.00562198]
[1740408472099,4.70256,2667.9,2667.8,4.34317161]
[1740408472607,10.70256,2667.9,2667.8,4.34317161]
[1740408473006,10.70256,2667.9,2667.8,2.11015928]
[1740408473201,1.87406,2667.7,2666.7,0.01437505]
[1740408473410,3.2078,2667.4,2666.3,5.08279]
[1740408473707,0.74983,2667.0,2666.8,0.74984]
[1740408474007,3.979,2667.0,2666.3,3.2078]
[1740408474207,3.979,2667.0,2666.9,0.74984]
[1740408474399,0.7498,2667.1,2666.9,0.74984]
[1740408474602,0.74978,2667.1,2666.9,0.74984]
[1740408474803,0.74978,2667.1,2666.8,0.74984]
[1740408475010,3.97362198,2667.2,2666.6,3.22779703]
[1740408475206,0.7499,2666.7,2666.6,0.00562198]
[1740408475408,3.97362198,2667.2,2666.6,0.00562198]
[1740408475613,0.74988,2666.8,2666.6,0.75554198]
[1740408476114,0.74985,2666.9,2666.7,0.74989]
[1740408476406,0.7499,2666.7,2666.6,0.00562198]
[1740408476610,4.7079,2666.7,2666.6,0.00562198]
[1740408477609,3.95,2666.7,2666.6,0.00562198]
[1740408477812,0.00562198,2666.9,2666.8,0.74987]
[1740408478213,0.00562198,2666.9,2666.6,0.00562198]
[1740408478411,0.74989,2666.8,2666.6,0.75553198]
[1740408478604,0.00562198,2666.9,2666.6,0.01999703]
[1740408478811,0.00562198,2666.9,2666.6,0.00562198]
[1740408479010,0.00562198,2666.9,2666.8,0.74987]
[1740408480210,3.2078,2667.5,2666.7,3.2078]
[1740408480416,3.2078,2667.8,2667.7,0.74961]
[1740408480619,3.934,2668.1,2667.7,0.74961]
[1740408480821,3.934,2668.1,2667.4,3.2078]
[1740408480822,0.74967,2667.5,2667.4,3.2078]
[1740408481015,3.2078,2667.7,2667.4,0.01437505]
[1740408481214,1.87418,2667.5,2667.0,0.74981]
[1740408481416,1.87418,2667.5,2666.8,3.2078]
[1740408481718,5.80916,2667.6,2666.9,1.17235987]
[1740408481923,3.935,2667.6,2667.5,0.74967]
[1740408482518,0.00562198,2667.8,2667.7,0.74961]
[1740408483024,0.00562198,2667.8,2667.7,5.12976987]
[1740408483322,0.00562198,2667.8,2667.7,1.17235987]
[1740408483514,0.00562198,2667.8,2667.7,4.50047952]
[1740408483722,0.75521198,2667.8,2667.7,3.75086952]
[1740408483915,0.75521198,2667.8,2667.7,3.76524457]
[1740408484114,0.75521198,2667.8,2667.7,2.10999974]
[1740408484517,0.7597897,2667.8,2667.7,2.10999974]
[1740408484716,0.7597897,2667.8,2667.7,2.85960974]
[1740408485011,0.7597897,2667.8,2667.7,2.10999974]
[1740408485418,0.7597897,2667.8,2667.7,2.69605453]
[1740408485723,0.0101997,2667.8,2667.7,3.44566453]
[1740408486919,4.19597,2668.7,2667.7,8.69605453]
[1740408486920,2.3226,2668.7,2667.7,8.69605453]
[1740408487123,0.74941,2668.5,2668.4,0.74942]
[1740408487317,0.74943,2668.4,2668.3,0.74944]
[1740408487520,3.95719,2668.5,2668.4,4.33656832]
[1740408487718,2.31667621,2668.5,2668.4,4.33656832]
[1740408488319,0.74939,2668.5,2668.4,4.33656832]
[1740408488623,0.74939,2668.5,2668.4,2.69605453]
[1740408489023,0.74945,2668.3,2668.2,0.00562198]
[1740408489220,3.895,2668.3,2668.2,0.00562198]
[1740408489420,0.00357425,2668.7,2668.2,0.00562198]
[1740408489619,0.74945,2668.3,2668.2,0.00979733]
[1740408489825,0.74945,2668.3,2668.2,0.00562198]
[1740408490121,0.74945,2668.3,2668.2,1.64628901]
[1740408490627,0.74945,2668.3,2668.2,0.00562198]
[1740408491623,2.2798,2668.5,2668.2,0.00562198]
[1740408491818,3.884,2668.6,2668.4,3.2078]
[1740408492023,3.884,2668.6,2668.3,0.74943]
[1740408492024,0.74942,2668.4,2668.3,0.74943]
[1740408492329,0.74945,2668.3,2668.2,0.00562198]
[1740408492719,3.884,2668.6,2668.2,0.00562198]
[1740408493021,0.00357425,2668.7,2668.6,0.74936]
[1740408493526,0.00357425,2668.7,2668.6,3.95716]
[1740408493721,0.00357425,2668.7,2668.6,3.96133535]
[1740408493918,0.00357425,2668.7,2668.6,0.00417535]
[1740408494123,0.00357425,2668.7,2668.2,0.00562198]
[1740408494322,0.74945,2668.3,2668.2,0.00562198]
[1740408494523,3.895,2668.4,2667.7,3.2078]
[1740408494723,0.74959,2667.8,2667.7,0.00417535]
[1740408494916,3.895,2668.4,2667.7,0.00417535]
[1740408495225,3.895,2668.4,2667.6,3.2078]
[1740408495226,3.2078,2668.3,2667.6,3.2078]
[1740408495426,3.05111885,2668.4,2667.8,1.64088001]
[1740408495728,3.892,2668.3,2668.2,0.74946]
[1740408496025,3.892,2668.3,2668.2,0.74947]
[1740408496522,3.892,2668.3,2667.8,3.21342198]
[1740408496723,0.74948,2668.2,2668.1,0.74949]
[1740408497022,0.74953,2668.0,2667.9,0.74954]
[1740408497223,0.74955,2668.0,2667.8,3.21759733]
[1740408497426,4.64145,2668.3,2667.8,3.21759733]
[1740408497725,3.892,2668.3,2667.8,3.21342198]
[1740408497926,0.74956,2667.9,2667.8,0.00979733]
[1740408498631,0.74956,2667.9,2667.8,1.18192098]
[1740408499624,0.74956,2667.9,2667.8,2.1196282]
[1740408500025,0.74956,2667.9,2667.8,2.11545285]
[1740408500726,0.74956,2667.9,2667.1,3.2078]
[1740408500727,12.221,2667.9,2666.5,3.2078]
[1740408500926,5.08208,2667.4,2666.5,3.2078]
[1740408501132,5.08208,2667.4,2666.6,0.74991]
[1740408501133,0.74989,2666.8,2666.6,0.74991]
[1740408501324,1.8744,2667.2,2666.7,0.74988]
[1740408501325,0.74986,2666.9,2666.7,0.74988]
[1740408501528,1.8744,2667.2,2666.6,2.22777562]
[1740408501828,0.74985,2666.9,2666.7,0.74988]
[1740408502028,0.00562198,2667.2,2666.7,0.58625674]
[1740408502327,0.74987,2666.8,2666.7,0.58625674]
[1740408502525,1.88005198,2667.2,2666.7,0.58625674]
[1740408502727,0.74985,2666.9,2666.8,0.58625674]
[1740408503132,0.74982,2667.0,2666.8,1.33611674]
[1740408503432,0.74984,2666.9,2666.8,0.58625674]
[1740408504630,1.88004198,2667.2,2666.1,5.08295]
[1740408504631,3.2078,2667.1,2666.1,5.08295]
[1740408504826,3.835,2667.0,2666.7,3.2078]
[1740408505135,0.00562198,2667.2,2666.7,3.2078]
[1740408505628,0.00562198,2667.2,2667.1,3.95758]
[1740408505835,0.74979,2667.1,2666.9,0.74983]
[1740408506027,0.00562198,2667.2,2667.0,0.7498]
[1740408506228,0.00562198,2667.2,2667.1,0.74978]
[1740408506526,0.00562198,2667.2,2667.1,3.2078]
[1740408506830,0.00562198,2667.2,2667.1,3.95758]
[1740408507131,0.75538198,2667.2,2667.1,3.2078]
[1740408507333,0.75538198,2667.2,2666.9,0.74983]
[1740408507334,0.00562198,2667.2,2666.7,3.21342198]
[1740408507529,0.00562198,2667.2,2667.0,3.2078]
[1740408507928,0.00562198,2667.2,2667.1,0.74978]
[1740408508130,0.00562198,2667.2,2667.0,3.21197535]
[1740408508435,3.814,2667.7,2667.6,0.74964]
[1740408508629,3.814,2667.7,2667.4,3.2078]
[1740408508829,1.87372,2668.2,2667.4,3.2078]
[1740408509035,0.74963,2667.7,2667.5,0.74966]
[1740408509235,5.68981,2668.1,2667.5,2.81338204]
[1740408509236,0.74964,2667.6,2667.5,2.81338204]
[1740408509425,7.0238,2668.1,2667.5,2.81338204]
[1740408509732,3.816,2668.1,2667.7,3.2078]
[1740408509936,3.82162198,2668.1,2667.6,3.2078]
[1740408510434,0.00562198,2668.1,2668.0,3.95733]
[1740408510629,23.1793,2668.4,2668.0,3.95733]
[1740408510630,4.55546,2668.3,2668.1,0.7495]
[1740408510833,4.55546,2668.3,2668.0,3.2078]
[1740408510834,5.6752,2668.9,2668.0,3.2078]
[1740408511132,3.802,2668.9,2668.3,3.2078]
[1740408511333,0.26641608,2669.2,2668.7,1.87334]
[1740408511533,0.74917,2669.3,2669.1,0.74922]
[1740408511728,0.74917,2669.3,2668.7,1.87334]
[1740408511729,3.2078,2670.3,2669.2,3.2078]
[1740408511930,3.813,2670.2,2669.6,3.2078]
[1740408512234,2.3533,2670.8,2669.9,3.2078]
[1740408512439,0.74881,2670.6,2670.3,3.2078]
[1740408512728,2.3533,2670.8,2670.3,3.2078]
[1740408512729,0.74886,2670.4,2670.3,3.2078]
[1740408512930,3.21137425,2670.7,2670.2,0.00562198]
[1740408513132,0.74888,2670.3,2670.2,0.00562198]
[1740408513332,0.74913,2669.5,2669.2,3.2078]
[1740408513531,2.91954938,2669.8,2669.2,3.21197535]
[1740408513731,2.91954938,2669.8,2669.2,0.00417535]
[1740408513933,2.91954938,2669.8,2669.3,3.74827091]
[1740408514135,0.74914,2669.4,2669.3,3.74827091]
[1740408514835,3.95694,2669.4,2669.3,3.74827091]
[1740408515335,3.95694,2669.4,2669.3,2.10840239]
[1740408515738,9.95694,2669.4,2669.3,2.62e-06]
[1740408515939,0.74942,2668.4,2668.3,3.2078]
[1740408516127,0.74942,2668.4,2668.3,3.21197535]
[1740408516334,1.87367,2668.3,2667.6,3.2078]
[1740408516638,20.791,2669.1,2667.9,3.2078]
[1740408516639,3.2078,2668.7,2667.9,3.2078]
[1740408516832,0.74933,2668.7,2668.2,3.2078]
[1740408517138,0.00562198,2668.6,2668.2,3.2078]
[1740408517640,0.00562198,2668.6,2668.0,0.59161218]
[1740408517641,0.00562198,2668.6,2668.5,3.2078]
[1740408517939,0.75498198,2668.6,2668.5,3.2078]
[1740408518145,0.00562198,2668.6,2668.3,0.5859902]
[1740408518434,0.74942,2668.4,2668.3,0.5859902]
[1740408518629,0.74947,2668.2,2668.1,2.2619]
[1740408518830,3.803,2668.3,2668.1,2.26607535]
[1740408519029,0.74947,2668.2,2668.1,0.59012415]
[1740408519431,0.74947,2668.2,2668.1,0.5859488]
[1740408520134,3.797,2668.5,2668.1,3.7937488]
[1740408520338,0.00562198,2668.6,2668.5,0.74939]
[1740408520537,0.00562198,2668.6,2668.3,0.74943]
[1740408520737,0.75498198,2668.6,2668.5,0.5859488]
[1740408521241,0.00562198,2668.6,2668.5,1.3353388]
[1740408521429,0.00562198,2668.6,2668.5,0.5859488]
[1740408521635,0.75498198,2668.6,2668.5,0.5859488]
[1740408521833,3.96278198,2668.6,2668.5,8.8e-06]
[1740408522039,9.96278198,2668.6,2668.5,8.8e-06]
[1740408522433,0.7495,2668.1,2668.0,0.00562198]
[1740408522634,4.5425,2668.1,2668.0,0.00562198]
[1740408523036,3.793,2668.1,2667.1,7.9192]
[1740408523337,3.2078,2668.2,2667.7,3.2078]
[1740408523641,4.5365,2668.1,2667.9,0.74955]
[1740408523942,3.787,2668.1,2667.8,1.17200268]
[1740408524639,0.74959,2667.8,2667.7,0.00562198]
[1740408525741,6.9948,2668.1,2667.7,0.00562198]